fUST/lending_fUST_20240430
["ID","MTS","AMOUNT","RATE_DAILY","PERIOD"]
[324970312,1714480277750,-685.27,0.00033424,7]
[324970313,1714480277759,-804.08,0.00033424,7]
[324970314,1714480277769,-266.24564074,0.00033424,7]
[324970315,1714480277778,-500.0,0.00033424,7]
[324970316,1714480277787,-500.0,0.00033424,7]
[324970317,1714480277795,-532.84,0.00033424,7]
[324970318,1714480277805,-500.0,0.00033424,7]
[324970319,1714480277813,-1006.5,0.00033424,7]
[324970320,1714480277823,-1897.04,0.00033424,7]
[324970321,1714480277832,-560.38,0.00033424,7]
[324970322,1714480277842,-603.01,0.00033424,7]
[324970323,1714480277851,-500.0,0.00033424,7]
[324970324,1714480277860,-530.17,0.00033424,7]
[324970325,1714480277870,-500.0,0.00033424,7]
[324970326,1714480277880,-921.22,0.00033424,7]
[324970327,1714480277890,-513.6,0.00033424,7]
[324970328,1714480277899,-500.0,0.00033424,7]
[324970329,1714480277908,-928.29,0.00033424,7]
[324970330,1714480277918,-500.0,0.00033424,7]
[324970331,1714480277928,-3236.72,0.00033424,7]
[324970332,1714480277938,-500.0,0.00033424,7]
[324970333,1714480277948,-500.0,0.00033424,7]
[324970334,1714480277958,-500.0,0.00033424,7]
[324970335,1714480277968,-505.64,0.00033424,7]
[324970336,1714480277978,-500.0,0.00033424,7]
[324970337,1714480277988,-1780.15,0.00033424,7]
[324970338,1714480277998,-500.0,0.00033424,7]
[324970339,1714480278008,-500.0,0.00033424,7]
[324970340,1714480278018,-500.0,0.00033424,7]
[324970341,1714480278028,-577.75,0.00033424,7]
[324970342,1714480278037,-500.0,0.00033424,7]
[324970343,1714480278048,-1137.4,0.00033424,7]
[324970344,1714480278061,-590.94507233,0.00033424,7]
[324970345,1714480278071,-933.38,0.00033424,7]
[324970346,1714480278081,-500.0,0.00033424,7]
[324970347,1714480278092,-500.0,0.00033424,7]
[324970348,1714480278103,-1628.49,0.00033424,7]
[324970349,1714480278114,-504.2274337,0.00033424,7]
[324970350,1714480278124,-500.0,0.00033424,7]
[324970351,1714480278134,-556.41,0.00033424,7]
[324970352,1714480278144,-500.0,0.00033424,7]
[324970353,1714480278154,-611.4,0.00033424,7]
[324970354,1714480278164,-3242.44,0.00033424,7]
[324970355,1714480278174,-500.0,0.00033424,7]
[324970356,1714480278183,-500.0,0.00033424,7]
[324970357,1714480278193,-2127.99,0.00033424,7]
[324970358,1714480278203,-500.0,0.00033424,7]
[324970359,1714480278213,-500.0,0.00033424,7]
[324970360,1714480278223,-799.99,0.00033424,7]
[324970361,1714480278232,-1320.84,0.00033424,7]
[324970362,1714480278242,-500.0,0.00033424,7]
[324970363,1714480278252,-518.31,0.00033424,7]
[324970364,1714480278261,-500.0,0.00033424,7]
[324970365,1714480278271,-500.0,0.00033424,7]
[324970366,1714480278280,-500.0,0.00033424,7]
[324970367,1714480278289,-654.2,0.00033424,7]
[324970368,1714480278299,-1525.02,0.00033424,7]
[324970369,1714480278312,-500.0,0.00033424,7]
[324970370,1714480278322,-545.68,0.00033424,7]
[324970371,1714480278331,-500.0,0.00033424,7]
[324970372,1714480278340,-1273.96,0.00033424,7]
[324970373,1714480278350,-1761.83,0.00033424,7]
[324970374,1714480278359,-639.64,0.00033424,7]
[324970375,1714480278368,-340.01326738,0.00033424,7]
[324970376,1714480278377,-500.0,0.00033424,7]
[324970377,1714480278387,-500.0,0.00033424,7]
[324970378,1714480278396,-555.04,0.00033424,7]
[324970379,1714480278406,-1774.44,0.00033424,7]
[324970380,1714480278416,-1354.57,0.00033424,7]
[324970381,1714480278425,-3447.14,0.00033424,7]
[324970382,1714480278435,-786.77,0.00033424,7]
[324970383,1714480278444,-707.6,0.00033424,7]
[324970384,1714480278454,-569.7,0.00033424,7]
[324970385,1714480278463,-500.0,0.00033424,7]
[324970386,1714480278473,-500.0,0.00033424,7]
[324970387,1714480278482,-751.5,0.00033424,7]
[324970388,1714480278492,-500.0,0.00033424,7]
[324970389,1714480278502,-500.0,0.00033424,7]
[324970390,1714480278512,-500.0,0.00033424,7]
[324970391,1714480278522,-500.0,0.00033424,7]
[324970392,1714480278632,-501.11229134,0.00033424,7]
[324970393,1714480278642,-500.0,0.00033424,30]
[324970394,1714480278652,-1391.74,0.00033424,7]
[324970395,1714480278667,-541.93212074,0.00033424,7]
[324970396,1714480278676,-1469.45,0.00033424,7]
[324970397,1714480278685,-500.0,0.00033424,7]
[324970398,1714480278696,-529.40185955,0.00033424,7]
[324970399,1714480278707,-500.0,0.00033424,7]
[324970400,1714480278717,-501.51858115,0.00033424,7]
[324970401,1714480278726,-500.0,0.00033424,7]
[324970402,1714480278737,-152.79752244,0.00033428,7]
[324970403,1714480278746,-157.73975448,0.00033491,7]
[324970404,1714480278756,-153.8921486,0.00033494,7]
[324970405,1714480278766,-200.0,0.00033587,120]
[324970406,1714480278775,-154.62751969,0.00033589,7]
[324970407,1714480278785,-1613.0,0.00033679,2]
[324970408,1714480278795,-999.19,0.00033698,7]
[324970409,1714480278804,-995.58,0.00033698,7]
[324970410,1714480278816,-513.93,0.00033698,7]
[324970411,1714480278826,-511.95940733,0.00033698,7]
[324970412,1714480278835,-500.0,0.00033698,3]
[324970413,1714480278845,-500.0,0.00033698,7]
[324970414,1714480278854,-500.0,0.00033698,7]
[324970415,1714480278863,-500.0,0.00033698,7]
[324970416,1714480278873,-500.0,0.00033698,7]
[324970417,1714480278883,-716.63,0.00033698,7]
[324970418,1714480278892,-300.0,0.00033698,7]
[324970419,1714480278901,-500.0,0.00033698,7]
[324970420,1714480278911,-500.0,0.00033698,7]
[324970421,1714480278921,-500.0,0.00033698,7]
[324970422,1714480278931,-500.0,0.00033698,7]
[324970423,1714480278940,-500.0,0.00033698,7]
[324970424,1714480278950,-500.0,0.00033698,7]
[324970425,1714480278959,-523.81,0.00033698,7]
[324970426,1714480278969,-890.43,0.00033698,7]
[324970427,1714480278978,-500.0,0.00033698,7]
[324970428,1714480278988,-500.0,0.00033698,7]
[324970429,1714480278997,-1768.07,0.00033698,7]
[324970430,1714480279007,-500.0,0.00033698,7]
[324970431,1714480279016,-1498.98,0.00033698,7]
[324970432,1714480279026,-500.0,0.00033698,7]
[324970433,1714480279035,-500.0,0.00033698,7]
[324970434,1714480279045,-500.0,0.00033698,7]
[324970435,1714480279054,-500.0,0.00033698,7]
[324970436,1714480279067,-882.34,0.00033698,7]
[324970437,1714480279077,-389.48625558,0.00033698,7]
[324970438,1714480279087,-500.0,0.00033698,7]
[324970439,1714480279096,-894.99,0.00033698,7]
[324970440,1714480279106,-599.82,0.00033698,7]
[324970441,1714480279115,-785.65,0.00033698,7]
[324970442,1714480279125,-500.0,0.00033698,7]
[324970443,1714480279134,-500.0,0.00033698,7]
[324970444,1714480279144,-500.0,0.00033698,7]
[324970445,1714480279154,-559.33,0.00033698,7]
[324970446,1714480279163,-500.0,0.00033698,7]
[324970447,1714480279174,-500.0,0.00033698,7]
[324970448,1714480279184,-500.0,0.00033698,2]
[324970449,1714480279193,-1442.92,0.00033698,7]
[324970450,1714480279203,-500.0,0.00033698,7]
[324970451,1714480279213,-500.0,0.00033698,7]
[324970452,1714480279223,-500.0,0.00033698,7]
[324970453,1714480279233,-500.0,0.00033698,7]
[324970454,1714480279242,-728.48,0.00033698,7]
[324970455,1714480279252,-500.0,0.00033698,7]
[324970456,1714480279262,-500.0,0.00033698,7]
[324970457,1714480279271,-500.0,0.00033698,7]
[324970458,1714480279281,-500.0,0.00033698,7]
[324970459,1714480279291,-554.17,0.00033698,7]
[324970460,1714480279300,-500.0,0.00033698,7]
[324970461,1714480279314,-672.86,0.00033698,7]
[324970462,1714480279323,-1006.99,0.00033698,7]
[324970463,1714480279333,-1748.77,0.00033698,7]
[324970464,1714480279342,-652.12,0.00033698,7]
[324970465,1714480279352,-570.84,0.00033698,7]
[324970466,1714480279361,-500.0,0.00033698,7]
[324970467,1714480279370,-1498.55,0.00033698,7]
[324970468,1714480279379,-500.0,0.00033698,7]
[324970469,1714480279388,-500.0,0.00033698,7]
[324970470,1714480279398,-500.0,0.00033698,7]
[324970471,1714480279407,-500.0,0.00033698,7]
[324970472,1714480279416,-500.0,0.00033698,7]
[324970473,1714480279425,-500.0,0.00033698,7]
[324970474,1714480279434,-509.77,0.00033698,7]
[324970475,1714480279444,-500.0,0.00033698,7]
[324970476,1714480279452,-574.86,0.00033698,7]
[324970477,1714480279461,-652.87,0.00033698,7]
[324970478,1714480279471,-500.0,0.00033698,7]
[324970479,1714480279480,-638.59,0.00033698,7]
[324970480,1714480279490,-500.0,0.00033698,7]
[324970481,1714480279500,-1324.85,0.00033698,7]
[324970482,1714480279510,-500.0,0.00033698,7]
[324970483,1714480279519,-511.97,0.00033698,7]
[324970484,1714480279529,-1440.78,0.00033698,7]
[324970485,1714480279539,-500.0,0.00033698,7]
[324970486,1714480279548,-471.10865008,0.00033698,7]
[324970487,1714480279563,-598.74,0.00033698,7]
[324970488,1714480279573,-911.25,0.00033698,7]
[324970489,1714480279583,-500.0,0.00033698,7]
[324970490,1714480279593,-630.12,0.00033698,7]
[324970491,1714480279602,-1896.05,0.00033698,7]
[324970492,1714480279611,-903.11,0.00033698,7]
[324970493,1714480279621,-1752.96,0.00033698,7]
[324970494,1714480279630,-2770.12,0.00033698,7]
[324970495,1714480279639,-500.0,0.00033698,7]
[324970496,1714480279648,-2114.85,0.00033698,7]
[324970497,1714480279658,-500.0,0.00033698,7]
[324970498,1714480279672,-501.85093738,0.00033698,7]
[324970499,1714480279682,-500.0,0.00033698,7]
[324970500,1714480279691,-500.0,0.00033698,7]
[324970501,1714480279703,-500.0,0.00033698,7]
[324970502,1714480279712,-657.48,0.00033698,7]
[324970503,1714480279722,-500.0,0.00033698,7]
[324970504,1714480279731,-500.0,0.00033698,7]
[324970505,1714480279740,-151.75334167,0.00033698,7]
[324970506,1714480279755,-577.33,0.00033698,7]
[324970507,1714480279764,-594.83,0.00033698,7]
[324970508,1714480279773,-527.95,0.00033698,7]
[324970509,1714480279782,-937.55,0.00033698,7]
[324970510,1714480279791,-500.0,0.00033698,7]
[324970511,1714480279800,-500.0,0.00033698,7]
[324970512,1714480279815,-1269.88,0.00033698,7]
[324970513,1714480279824,-500.0,0.00033698,7]
[324970514,1714480279833,-846.37,0.00033698,7]
[324970515,1714480279843,-518.38763873,0.00033698,7]
[324970516,1714480279852,-500.0,0.00033698,7]
[324970517,1714480279861,-502.20110562,0.00033698,7]
[324970518,1714480279871,-500.0,0.00033698,7]
[324970519,1714480279880,-1025.5,0.00033698,7]
[324970520,1714480279890,-8014.06,0.00033698,7]
[324970521,1714480279900,-2622.44,0.00033698,7]
[324970522,1714480279910,-500.0,0.00033698,7]
[324970523,1714480279920,-500.0,0.00033698,7]
[324970524,1714480279929,-501.21915037,0.00033698,7]
[324970525,1714480279939,-685.27,0.00033698,7]
[324970526,1714480279948,-804.08,0.00033698,7]
[324970527,1714480279957,-500.0,0.00033698,7]
[324970528,1714480279967,-500.0,0.00033698,7]
[324970529,1714480279976,-532.84,0.00033698,7]
[324970530,1714480279985,-501.9259632,0.00033698,7]
[324970531,1714480279995,-1006.5,0.00033698,7]
[324970532,1714480280004,-1897.04,0.00033698,7]
[324970533,1714480280013,-560.38,0.00033698,7]
[324970534,1714480280023,-500.0,0.00033698,7]
[324970535,1714480280032,-603.01,0.00033698,7]
[324970536,1714480280042,-530.17,0.00033698,7]
[324970537,1714480280052,-921.22,0.00033698,7]
[324970538,1714480280065,-513.6,0.00033698,7]
[324970539,1714480280075,-500.0,0.00033698,7]
[324970540,1714480280084,-928.29,0.00033698,7]
[324970541,1714480280093,-500.0,0.00033698,7]
[324970542,1714480280103,-3236.72,0.00033698,7]
[324970543,1714480280112,-500.0,0.00033698,7]
[324970544,1714480280122,-500.0,0.00033698,7]
[324970545,1714480280132,-501.68200846,0.00033698,7]
[324970546,1714480280142,-505.64,0.00033698,7]
[324970547,1714480280151,-528.42534051,0.00033698,7]
[324970548,1714480280160,-1780.15,0.00033698,7]
[324970549,1714480280170,-502.61846026,0.00033698,7]
[324970550,1714480280180,-500.0,0.00033698,7]
[324970551,1714480280190,-500.0,0.00033698,7]
[324970552,1714480280200,-577.75,0.00033698,7]
[324970553,1714480280209,-500.0,0.00033698,7]
[324970554,1714480280219,-1137.4,0.00033698,7]
[324970555,1714480280229,-933.38,0.00033698,7]
[324970556,1714480280238,-500.0,0.00033698,7]
[324970557,1714480280248,-500.0,0.00033698,7]
[324970558,1714480280258,-1628.49,0.00033698,7]
[324970559,1714480280267,-500.0,0.00033698,7]
[324970560,1714480280276,-556.41,0.00033698,7]
[324970561,1714480280286,-500.0,0.00033698,7]
[324970562,1714480280296,-3242.44,0.00033698,7]
[324970563,1714480280309,-611.4,0.00033698,7]
[324970564,1714480280319,-500.0,0.00033698,7]
[324970565,1714480280328,-500.0,0.00033698,7]
[324970566,1714480280338,-2127.99,0.00033698,7]
[324970567,1714480280348,-509.89363167,0.00033698,7]
[324970568,1714480280357,-500.0,0.00033698,7]
[324970569,1714480280366,-799.99,0.00033698,7]
[324970570,1714480280376,-1320.84,0.00033698,7]
[324970571,1714480280386,-500.0,0.00033698,7]
[324970572,1714480280395,-518.31,0.00033698,7]
[324970573,1714480280404,-500.0,0.00033698,7]
[324970574,1714480280414,-500.0,0.00033698,7]
[324970575,1714480280424,-500.0,0.00033698,7]
[324970576,1714480280529,-654.2,0.00033698,7]
[324970577,1714480280539,-1525.02,0.00033698,7]
[324970578,1714480280549,-500.0,0.00033698,7]
[324970579,1714480280561,-545.68,0.00033698,7]
[324970580,1714480280571,-511.76493726,0.00033698,7]
[324970581,1714480280581,-1273.96,0.00033698,7]
[324970582,1714480280591,-1761.83,0.00033698,7]
[324970583,1714480280601,-639.64,0.00033698,7]
[324970584,1714480280610,-500.0,0.00033698,7]
[324970585,1714480280619,-500.0,0.00033698,7]
[324970586,1714480280629,-555.04,0.00033698,7]
[324970587,1714480280639,-1774.44,0.00033698,7]
[324970588,1714480280649,-1354.57,0.00033698,7]
[324970589,1714480280659,-3447.14,0.00033698,7]
[324970590,1714480280670,-786.77,0.00033698,7]
[324970591,1714480280681,-707.6,0.00033698,7]
[324970592,1714480280691,-569.7,0.00033698,7]
[324970593,1714480280700,-500.0,0.00033698,7]
[324970594,1714480280710,-500.0,0.00033698,7]
[324970595,1714480280720,-751.5,0.00033698,7]
[324970596,1714480280729,-500.0,0.00033698,7]
[324970597,1714480280739,-500.0,0.00033698,7]
[324970598,1714480280749,-500.0,0.00033698,7]
[324970599,1714480280759,-500.0,0.00033698,7]
[324970600,1714480280768,-500.0,0.00033698,30]
[324970601,1714480280777,-1391.74,0.00033698,7]
[324970602,1714480280787,-1469.45,0.00033698,7]
[324970603,1714480280796,-500.0,0.00033698,7]
[324970604,1714480280808,-500.0,0.00033698,7]
[324970605,1714480280817,-500.0,0.00033698,7]
[324970606,1714480280826,-1255.4,0.00033713,5]
[324970607,1714480280836,-157.73975448,0.00033736,7]
[324970608,1714480280846,-152.79752244,0.00033844,7]
[324970609,1714480280856,-500.0,0.00033858,5]
[324970610,1714480280865,-153.8921486,0.00033912,7]
[324970611,1714480280874,-999.19,0.00033972,7]
[324970612,1714480280883,-995.58,0.00033972,7]
[324970613,1714480280893,-513.93,0.00033972,7]
[324970614,1714480280903,-500.0,0.00033972,7]
[324970615,1714480280912,-500.0,0.00033972,3]
[324970616,1714480280922,-502.00246879,0.00033972,7]
[324970617,1714480280931,-238.58891095,0.00033972,7]
[324970618,1714480280940,-500.0,0.00033972,7]
[324970619,1714480280950,-716.63,0.00033972,7]
[324970620,1714480280959,-300.0,0.00033972,7]
[324970621,1714480280969,-500.0,0.00033972,7]
[324970622,1714480280978,-500.0,0.00033972,7]
[324970623,1714480280987,-500.0,0.00033972,7]
[324970624,1714480280997,-500.0,0.00033972,7]
[324970625,1714480281007,-500.0,0.00033972,7]
[324970626,1714480281016,-500.0,0.00033972,7]
[324970627,1714480281026,-523.81,0.00033972,7]
[324970628,1714480281035,-890.43,0.00033972,7]
[324970629,1714480281044,-500.0,0.00033972,7]
[324970630,1714480281054,-500.0,0.00033972,7]
[324970631,1714480281064,-1768.07,0.00033972,7]
[324970632,1714480281074,-500.0,0.00033972,7]
[324970633,1714480281084,-1498.98,0.00033972,7]
[324970634,1714480281093,-500.0,0.00033972,7]
[324970635,1714480281103,-478.87414786,0.00033972,7]
[324970636,1714480281113,-500.0,0.00033972,7]
[324970637,1714480281123,-500.0,0.00033972,7]
[324970638,1714480281133,-882.34,0.00033972,7]
[324970639,1714480281143,-500.0,0.00033972,7]
[324970640,1714480281152,-894.99,0.00033972,7]
[324970641,1714480281162,-599.82,0.00033972,7]
[324970642,1714480281171,-785.65,0.00033972,7]
[324970643,1714480281181,-500.0,0.00033972,7]
[324970644,1714480281190,-500.0,0.00033972,7]
[324970645,1714480281200,-502.41483296,0.00033972,7]
[324970646,1714480281210,-559.33,0.00033972,7]
[324970647,1714480281219,-500.0,0.00033972,7]
[324970648,1714480281229,-500.0,0.00033972,7]
[324970649,1714480281239,-500.0,0.00033972,2]
[324970650,1714480281249,-1442.92,0.00033972,7]
[324970651,1714480281259,-500.0,0.00033972,7]
[324970652,1714480281268,-500.0,0.00033972,7]
[324970653,1714480281277,-500.0,0.00033972,7]
[324970654,1714480281287,-500.0,0.00033972,7]
[324970655,1714480281296,-728.48,0.00033972,7]
[324970656,1714480281308,-502.14851973,0.00033972,7]
[324970657,1714480281317,-500.0,0.00033972,7]
[324970658,1714480281326,-500.0,0.00033972,7]
[324970659,1714480281335,-500.0,0.00033972,7]
[324970660,1714480281344,-554.17,0.00033972,7]
[324970661,1714480281354,-500.0,0.00033972,7]
[324970662,1714480281363,-672.86,0.00033972,7]
[324970663,1714480281372,-1006.99,0.00033972,7]
[324970664,1714480281382,-1748.77,0.00033972,7]
[324970665,1714480281391,-652.12,0.00033972,7]
[324970666,1714480281401,-570.84,0.00033972,7]
[324970667,1714480281410,-500.0,0.00033972,7]
[324970668,1714480281420,-1498.55,0.00033972,7]
[324970669,1714480281429,-500.0,0.00033972,7]
[324970670,1714480281439,-500.0,0.00033972,7]
[324970671,1714480281448,-500.0,0.00033972,7]
[324970672,1714480281457,-500.0,0.00033972,7]
[324970673,1714480281467,-500.0,0.00033972,7]
[324970674,1714480281477,-500.0,0.00033972,7]
[324970675,1714480281487,-509.77,0.00033972,7]
[324970676,1714480281497,-500.0,0.00033972,7]
[324970677,1714480281507,-574.86,0.00033972,7]
[324970678,1714480281518,-652.87,0.00033972,7]
[324970679,1714480281527,-500.0,0.00033972,7]
[324970680,1714480281537,-638.59,0.00033972,7]
[324970681,1714480281547,-500.0,0.00033972,7]
[324970682,1714480281561,-1324.85,0.00033972,7]
[324970683,1714480281572,-500.0,0.00033972,7]
[324970684,1714480281581,-511.97,0.00033972,7]
[324970685,1714480281591,-1440.78,0.00033972,7]
[324970686,1714480281601,-500.0,0.00033972,7]
[324970687,1714480281611,-598.74,0.00033972,7]
[324970688,1714480281622,-911.25,0.00033972,7]
[324970689,1714480281632,-500.0,0.00033972,7]
[324970690,1714480281642,-630.12,0.00033972,7]
[324970691,1714480281653,-1896.05,0.00033972,7]
[324970692,1714480281667,-903.11,0.00033972,7]
[324970693,1714480281677,-1752.96,0.00033972,7]
[324970694,1714480281686,-2770.12,0.00033972,7]
[324970695,1714480281696,-500.0,0.00033972,7]
[324970696,1714480281707,-2114.85,0.00033972,7]
[324970697,1714480281716,-500.0,0.00033972,7]
[324970698,1714480281727,-500.0,0.00033972,7]
[324970699,1714480281737,-500.0,0.00033972,7]
[324970700,1714480281748,-500.89891223,0.00033972,7]
[324970701,1714480281757,-657.48,0.00033972,7]
[324970702,1714480281767,-500.0,0.00033972,7]
[324970703,1714480281776,-500.0,0.00033972,7]
[324970704,1714480281786,-577.33,0.00033972,7]
[324970705,1714480281795,-594.83,0.00033972,7]
[324970706,1714480281806,-527.95,0.00033972,7]
[324970707,1714480281819,-937.55,0.00033972,7]
[324970708,1714480281829,-500.0,0.00033972,7]
[324970709,1714480281839,-500.0,0.00033972,7]
[324970710,1714480281849,-1269.88,0.00033972,7]
[324970711,1714480281859,-500.0,0.00033972,7]
[324970712,1714480281868,-846.37,0.00033972,7]
[324970713,1714480281878,-500.0,0.00033972,7]
[324970714,1714480281888,-500.0,0.00033972,7]
[324970715,1714480281897,-1025.5,0.00033972,7]
[324970716,1714480281907,-8014.06,0.00033972,7]
[324970717,1714480281917,-2622.44,0.00033972,7]
[324970718,1714480281926,-500.0,0.00033972,7]
[324970719,1714480281935,-322.98665006,0.00033972,7]
[324970720,1714480281945,-685.27,0.00033972,7]
[324970721,1714480281955,-804.08,0.00033972,7]
[324970722,1714480281965,-500.0,0.00033972,7]
[324970723,1714480281974,-500.0,0.00033972,7]
[324970724,1714480281984,-532.84,0.00033972,7]
[324970725,1714480281993,-1006.5,0.00033972,7]
[324970726,1714480282003,-1897.04,0.00033972,7]
[324970727,1714480282012,-560.38,0.00033972,7]
[324970728,1714480282022,-603.01,0.00033972,7]
[324970729,1714480282031,-500.0,0.00033972,7]
[324970730,1714480282041,-530.17,0.00033972,7]
[324970731,1714480282050,-921.22,0.00033972,7]
[324970732,1714480282064,-513.6,0.00033972,7]
[324970733,1714480282074,-339.58012999,0.00033972,7]
[324970734,1714480282083,-928.29,0.00033972,7]
[324970735,1714480282093,-500.0,0.00033972,7]
[324970736,1714480282103,-3236.72,0.00033972,7]
[324970737,1714480282112,-500.0,0.00033972,7]
[324970738,1714480282122,-500.0,0.00033972,7]
[324970739,1714480282132,-505.64,0.00033972,7]
[324970740,1714480282142,-1780.15,0.00033972,7]
[324970741,1714480282151,-500.0,0.00033972,7]
[324970742,1714480282161,-500.0,0.00033972,7]
[324970743,1714480282171,-577.75,0.00033972,7]
[324970744,1714480282181,-500.0,0.00033972,7]
[324970745,1714480282191,-1137.4,0.00033972,7]
[324970746,1714480282295,-933.38,0.00033972,7]
[324970747,1714480282308,-500.0,0.00033972,7]
[324970748,1714480282317,-500.0,0.00033972,7]
[324970749,1714480282327,-1628.49,0.00033972,7]
[324970750,1714480282336,-500.0,0.00033972,7]
[324970751,1714480282346,-556.41,0.00033972,7]
[324970752,1714480282356,-500.0,0.00033972,7]
[324970753,1714480282367,-3242.44,0.00033972,7]
[324970754,1714480282377,-611.4,0.00033972,7]
[324970755,1714480282387,-500.0,0.00033972,7]
[324970756,1714480282397,-500.0,0.00033972,7]
[324970757,1714480282407,-2127.99,0.00033972,7]
[324970758,1714480282416,-500.0,0.00033972,7]
[324970759,1714480282426,-799.99,0.00033972,7]
[324970760,1714480282436,-1320.84,0.00033972,7]
[324970761,1714480282445,-500.0,0.00033972,7]
[324970762,1714480282455,-518.31,0.00033972,7]
[324970763,1714480282465,-500.0,0.00033972,7]
[324970764,1714480282474,-500.0,0.00033972,7]
[324970765,1714480282484,-502.00575313,0.00033972,7]
[324970766,1714480282493,-654.2,0.00033972,7]
[324970767,1714480282503,-1525.02,0.00033972,7]
[324970768,1714480282512,-500.0,0.00033972,7]
[324970769,1714480282522,-545.68,0.00033972,7]
[324970770,1714480282531,-1273.96,0.00033972,7]
[324970771,1714480282540,-1761.83,0.00033972,7]
[324970772,1714480282550,-639.64,0.00033972,7]
[324970773,1714480282562,-500.0,0.00033972,7]
[324970774,1714480282572,-500.0,0.00033972,7]
[324970775,1714480282582,-555.04,0.00033972,7]
[324970776,1714480282592,-1774.44,0.00033972,7]
[324970777,1714480282602,-1354.57,0.00033972,7]
[324970778,1714480282611,-3447.14,0.00033972,7]
[324970779,1714480282620,-786.77,0.00033972,7]
[324970780,1714480282630,-707.6,0.00033972,7]
[324970781,1714480282640,-569.7,0.00033972,7]
[324970782,1714480282649,-500.0,0.00033972,7]
[324970783,1714480282660,-500.0,0.00033972,7]
[324970784,1714480282670,-751.5,0.00033972,7]
[324970785,1714480282683,-500.0,0.00033972,7]
[324970786,1714480282693,-272.51632962,0.00033972,7]
[324970787,1714480282702,-500.0,0.00033972,7]
[324970788,1714480282712,-500.0,0.00033972,7]
[324970789,1714480282722,-500.0,0.00033972,30]
[324970790,1714480282731,-1391.74,0.00033972,7]
[324970791,1714480282741,-1469.45,0.00033972,7]
[324970792,1714480282752,-500.0,0.00033972,7]
[324970793,1714480282763,-500.0,0.00033972,7]
[324970794,1714480282773,-154.62751969,0.00033995,7]
[324970795,1714480282786,-466.43678541,0.00034,4]
[324970796,1714480282795,-154.62751969,0.00034111,7]
[324970797,1714480282805,-200.0,0.00034132,120]
[324970798,1714480282818,-154.62751969,0.0003424,7]
[324970799,1714480282828,-999.19,0.00034246,7]
[324970800,1714480282837,-995.58,0.00034246,7]
[324970801,1714480282847,-513.93,0.00034246,7]
[324970802,1714480282856,-500.0,0.00034246,7]
[324970803,1714480282867,-500.0,0.00034246,3]
[324970804,1714480282876,-500.0,0.00034246,7]
[324970805,1714480282886,-716.63,0.00034246,7]
[324970806,1714480282897,-300.0,0.00034246,7]
[324970807,1714480282907,-500.0,0.00034246,7]
[324970808,1714480282920,-500.0,0.00034246,7]
[324970809,1714480282930,-500.0,0.00034246,7]
[324970810,1714480282940,-500.0,0.00034246,7]
[324970811,1714480282950,-500.0,0.00034246,7]